Workbook

Sheet Schedule H - Rate History
A1: Program Name | D1: 3S - ABC Residential Services | F1: Provider ID | H1: =VLOOKUP(D1,List!A2:C145,2,FALSE) -> 555777999 | L1: FOR PROVIDER USE ONLY DO NOT SUBMIT WITH COST REPORT | AK1: ANNUAL SERVICES PAID BY PROGRAM TYPE | AO1: =IF(AN1="","",AH2+AI2+AJ2) ->  | AR1: PROFESSIONAL SERVICES | AV1: Professional Svs Paid Calculation | AW1: =SUM(AV4:AV43) -> 0
A2: Report Period | D2: 2020-01-01 | F2: 2020-12-31 | J2: =IF($AN$1="",SUM(J4:J42),SUMIF($E$4:$E$42,$AN$1,J4:J42)) -> 5797 | K2: =IF($AN$1="",SUM(K4:K42),SUMIF($E$4:$E$42,$AN$1,K4:K42)) -> 22 | AG2: Annual Totals | AH2: =IF($AN$1="",SUM(AH4:AH42),SUMIF($E$4:$E$42,$AN$1,AH4:AH42)) -> 1261382.95 | AI2: 23469.8 | AJ2: 28115.45 | AK2: 9055.63 | AL2: 1322023.83 | AM2: 245123.74 | AN2: 9738.96 | AO2: 5885.15 | AP2: 0 | AQ2: 10636.56 | AR2: 19212.41 | AS2: 290596.82 | AT2: 1612620.65 | AU2: 1612620.65 | AV2: 0 | AW2: 5797
A3: Client Name (b) | B3: House or Cluster | C3: Client P1 ID (c) | D3: P1 Service Code/RAC (w) | E3: Program Type | F3: Rate Effective Date (d) | G3: Actual Start Date (Overrides Rate Effective Date) | H3: Rate End Date | I3: Actual End Date (Overrides Rate End Date) | J3: Resid Days Paid | K3: Client Count | L3: ISS Tier Level (e) | M3: ISS Daily Tier Rate (f) | N3: Prof Svs Hrs PCD 1 (g) | O3: Prof Svs Hrly Rate 1 (h) | P3: Prof Svs Hrs PCD 2 (i) | Q3: Prof Svs Hrly Rate 2 (j) | R3: Prof Svs Hrs PCD 3 | S3: Prof Svs Hrly Rate 3 | T3: Prof Svs Hrs PCD 4 | U3: Prof Svs Hrly Rate 4 | V3: ISS Prof Svs Daily Rate | W3: ISS CRST Tier Rate (l) | X3: ISS Hold Harmless Rate (m) | Y3: Total ISS Daily Rate | Z3: Admin Tier Rate (o) | AA3: Admin Hold Harmless (p) | AB3: Admin CRST Tier Rate (q) | AC3: Admin Cert Rate (r) | AD3: Transportation Rate (s) | AE3: Other Non-ISS Rates (t) | AF3: Total Non-ISS Daily Rate | AG3: Total ISS & Non-ISS Daily Rate | AH3: Annual ISS Paid | AI3: Annual ISS CRST Paid | AJ3: Annual ISS Hold Harmless Paid | AK3: Annual ISS Prof Svs Paid | AL3: Total Annual ISS Paid | AM3: Annual Admin Paid | AN3: Annual Admin Hold Harmless Paid | AO3: Annual Admin CRST Paid | AP3: Annual Admin Cert Paid | AQ3: Annual Transportation Paid | AR3: Annual Other Non-ISS Paid | AS3: Total Annual Non-ISS Paid | AT3: Annual ISS & Non-ISS Paid | AU3: Total ISS & Non-ISS Paid per Client | AV3: Prof Svs Paid Calculation | AW3: Total Days Paid per Client
A4: Client A | B4: House 1 | C4: 500 | D4: SA722-3603 GH CORE | E4: GH Group Home | F4: 2019-01-01 | H4: 2019-12-31 | J4: =IF(F4>0,+IF(I4>0,I4,H4)-IF(G4>0,G4,F4)+1,0) -> 365 | K4: =IF(C4<=0,"",IF(C4=C3,"",1)) -> 1 | L4: 4 | M4: 291.71 | R4: -30 | S4: -30 | T4: -30 | U4: -30 | V4: =ROUND(+N4*O4+P4*Q4,2) -> 0 | W4: 5.42 | X4: 4.85 | Y4: =(M4+V4+W4+X4) -> 301.98 | Z4: 57.97 | AA4: 1.68 | AB4: 1.36 | AC4: 0 | AD4: 0 | AE4: 0 | AF4: =SUM(Z4:AE4) -> 61.01 | AG4: =+Y4+AF4 -> 362.99 | AH4: =M4*J4 -> 106474.15 | AI4: =W4*J4 -> 1978.3 | AJ4: =X4*J4 -> 1770.25 | AK4: =ROUND(+N4*O4+P4*Q4,2)*J4 -> 0 | AL4: =$J4*Y4 -> 110222.7 | AM4: =$J4*Z4 -> 21159.05 | AN4: =$J4*AA4 -> 613.2 | AO4: =$J4*AB4 -> 496.4 | AP4: =$J4*AC4 -> 0 | AQ4: =J4*AD4 -> 0 | AR4: =$J4*AE4 -> 0 | AS4: =$J4*AF4 -> 22268.65 | AT4: =AL4+AS4 -> 132491.35 | AU4: =IF(A5=A4,0,SUMIF($A$4:$A$4805,$A4,AL$4:AL$4805))+IF(A5=A4,0,SUMIF($A$4:$A$4805,$A4,AS$4:AS$4805)) -> 132491.35 | AV4: =IF($O4=$AU$1,ROUND($N4*$O4,2)*$J4,0)+IF($Q4=$AU$1,ROUND($P4*$Q157,2)*$J4,0) -> 0 | AW4: =IF(A5=A4,0,SUMIF($A$4:$A$4805,$A4,J$4:J$4805))+IF(A5=A4,0,SUMIF($A$4:$A$4805,$A4)) -> 365
A5: Client B | B5: House 1 | C5: 502 | D5: SA722-3603 GH CORE | E5: GH Group Home | F5: 2019-01-01 | H5: 2019-12-31 | J5: 365 | K5: 1 | L5: 3 | M5: 223.56 | R5: -27 | S5: -27 | T5: -27 | U5: -27 | V5: =ROUND(+N5*O5+P5*Q5,2) -> 0 | W5: 4.16 | X5: 4.85 | Y5: 232.57 | Z5: 56.63 | AA5: 1.68 | AB5: 1.04 | AC5: 0 | AD5: 0 | AE5: 0 | AF5: 59.35 | AG5: 291.92 | AH5: 81599.4 | AI5: 1518.4 | AJ5: 1770.25 | AK5: 0 | AL5: 84888.05 | AM5: 20669.95 | AN5: 613.2 | AO5: 379.6 | AP5: 0 | AQ5: 0 | AR5: 0 | AS5: 21662.75 | AT5: 106550.8 | AU5: 106550.8 | AV5: 0 | AW5: 365
A6: Client C | B6: House 1 | C6: 503 | D6: SA722-3603 GH CORE | E6: GH Group Home | F6: 2019-01-01 | H6: 2019-06-30 | J6: 181 | K6: 1 | L6: 2 | M6: 144.81 | R6: -26 | S6: -26 | T6: -26 | U6: -26 | V6: 0 | W6: 2.69 | X6: 4.85 | Y6: 152.35 | Z6: 54.84 | AA6: 1.68 | AB6: 0.68 | AC6: 0 | AD6: 0 | AE6: 2.5 | AF6: 59.7 | AG6: 212.05 | AH6: 26210.61 | AI6: 486.89 | AJ6: 877.85 | AK6: 0 | AL6: 27575.35 | AM6: 9926.04 | AN6: 304.08 | AO6: 123.08 | AP6: 0 | AQ6: 0 | AR6: 452.5 | AS6: 10805.7 | AT6: 38381.05 | AU6: 0 | AV6: 0 | AW6: 0
A7: Client C | B7: House 1 | C7: 503 | D7: SA722-3603 GH CORE | E7: GH Group Home | F7: 2019-07-01 | H7: 2019-12-31 | J7: 184 | L7: 2 | M7: 144.81 | R7: -25 | S7: -25 | T7: -25 | U7: -25 | V7: 0 | W7: 2.69 | X7: 4.85 | Y7: 152.35 | Z7: 54.84 | AA7: 1.68 | AB7: 0.68 | AC7: 0 | AD7: 0 | AE7: 0 | AF7: 57.2 | AG7: 209.55 | AH7: 26645.04 | AI7: 494.96 | AJ7: 892.4 | AK7: 0 | AL7: 28032.4 | AM7: 10090.56 | AN7: 309.12 | AO7: 125.12 | AP7: 0 | AQ7: 0 | AR7: 0 | AS7: 10524.8 | AT7: 38557.2 | AU7: 76938.25 | AV7: 0 | AW7: 365
A8: Client D | B8: House 2 | C8: 505 | D8: SA722-3905 GTH State | E8: GTH Group Training Home | F8: 2019-01-01 | H8: 2019-12-31 | J8: 365 | K8: 1 | L8: 4 | M8: 291.71 | R8: -23 | S8: -23 | T8: -23 | U8: -23 | V8: 0 | W8: 5.42 | X8: 4.85 | Y8: 301.98 | Z8: 57.97 | AA8: 1.68 | AB8: 1.36 | AC8: 0 | AD8: 0 | AE8: 2.5 | AF8: 63.51 | AG8: 365.49 | AH8: 106474.15 | AI8: 1978.3 | AJ8: 1770.25 | AK8: 0 | AL8: 110222.7 | AM8: 21159.05 | AN8: 613.2 | AO8: 496.4 | AP8: 0 | AQ8: 0 | AR8: 912.5 | AS8: 23181.15 | AT8: 133403.85 | AU8: 133403.85 | AV8: 0 | AW8: 365
A9: Client E | B9: House 2 | C9: 506 | D9: SA722-3905 GTH State | E9: GTH Group Training Home | F9: 2019-01-01 | H9: 2019-12-31 | J9: 365 | K9: 1 | L9: 4 | M9: 291.71 | R9: -22 | S9: -22 | T9: -22 | U9: -22 | V9: 0 | W9: 5.42 | X9: 4.85 | Y9: 301.98 | Z9: 57.97 | AA9: 1.68 | AB9: 1.36 | AC9: 0 | AD9: 0 | AE9: 0 | AF9: 61.01 | AG9: 362.99 | AH9: 106474.15 | AI9: 1978.3 | AJ9: 1770.25 | AK9: 0 | AL9: 110222.7 | AM9: 21159.05 | AN9: 613.2 | AO9: 496.4 | AP9: 0 | AQ9: 0 | AR9: 0 | AS9: 22268.65 | AT9: 132491.35 | AU9: 132491.35 | AV9: 0 | AW9: 365
A10: Client F | B10: House 2 | C10: 508 | D10: SA722-3603 GH CORE | E10: GTH Group Training Home | F10: 2019-01-01 | H10: 2019-12-31 | I10: 2019-01-21 | J10: 21 | K10: 1 | L10: 3 | M10: 223.56 | R10: -19 | S10: -19 | T10: -19 | U10: -19 | V10: 0 | W10: 4.16 | X10: 4.85 | Y10: 232.57 | Z10: 56.63 | AA10: 1.68 | AB10: 1.04 | AC10: 0 | AD10: 0 | AE10: 0 | AF10: 59.35 | AG10: 291.92 | AH10: 4694.76 | AI10: 87.36 | AJ10: 101.85 | AK10: 0 | AL10: 4883.97 | AM10: 1189.23 | AN10: 35.28 | AO10: 21.84 | AP10: 0 | AQ10: 0 | AR10: 0 | AS10: 1246.35 | AT10: 6130.32 | AU10: 6130.32 | AV10: 0 | AW10: 21
A11: Client 01 | B11: Cluster 1 | C11: 509 | D11: SA716-3603 SL CORE | E11: SL Supported Living | F11: 2019-01-01 | H11: 2019-12-31 | J11: 365 | K11: 1 | L11: 2 | M11: 144.81 | N11: 0.2 | O11: 38.75 | R11: -17 | S11: -17 | T11: -17 | U11: -17 | V11: 7.75 | W11: 2.69 | X11: 4.85 | Y11: 160.1 | Z11: 34.02 | AA11: 1.68 | AB11: 0.68 | AC11: 0 | AD11: 2.25 | AE11: 2.5 | AF11: 41.13 | AG11: 201.23 | AH11: 52855.65 | AI11: 981.85 | AJ11: 1770.25 | AK11: =ROUND(+N11*O11+P11*Q11,2)*J11 -> 2828.75 | AL11: 58436.5 | AM11: 12417.3 | AN11: 613.2 | AO11: 248.2 | AP11: 0 | AQ11: 821.25 | AR11: 912.5 | AS11: 15012.45 | AT11: 73448.95 | AU11: 73448.95 | AV11: 0 | AW11: 365
A12: Client 02 | B12: Cluster 1 | C12: 510 | D12: SA716-3603 SL CORE | E12: SL Supported Living | F12: 2019-01-01 | H12: 2019-12-31 | I12: 2019-06-30 | J12: 181 | K12: 1 | L12: 3 | M12: 223.56 | R12: -16 | S12: -16 | T12: -16 | U12: -16 | V12: 0 | W12: 4.16 | X12: 4.85 | Y12: 232.57 | Z12: 35.81 | AA12: 1.68 | AB12: 1.04 | AC12: 0 | AD12: 2.25 | AE12: 13.87 | AF12: 54.65 | AG12: 287.22 | AH12: 40464.36 | AI12: 752.96 | AJ12: 877.85 | AK12: =ROUND(+N12*O12+P12*Q12,2)*J12 -> 0 | AL12: 42095.17 | AM12: 6481.61 | AN12: 304.08 | AO12: 188.24 | AP12: 0 | AQ12: 407.25 | AR12: 2510.47 | AS12: 9891.65 | AT12: 51986.82 | AU12: 51986.82 | AV12: 0 | AW12: 181
A13: Client 02 (Client 8) COCA | B13: Cluster 1 | C13: 510 | D13: SA716-3603 SL CORE | E13: SL Supported Living | F13: 2019-07-01 | H13: 2019-07-31 | J13: 31 | L13: 3 | M13: 223.56 | R13: -15 | S13: -15 | T13: -15 | U13: -15 | V13: 0 | W13: 4.16 | X13: 4.85 | Y13: 232.57 | Z13: 35.81 | AA13: 1.68 | AB13: 1.04 | AC13: 0 | AD13: 2.25 | AE13: 13.87 | AF13: 54.65 | AG13: 287.22 | AH13: 6930.36 | AI13: 128.96 | AJ13: 150.35 | AK13: 0 | AL13: 7209.67 | AM13: 1110.11 | AN13: 52.08 | AO13: 32.24 | AP13: 0 | AQ13: 69.75 | AR13: 429.97 | AS13: 1694.15 | AT13: 8903.82 | AU13: 8903.82 | AV13: 0 | AW13: 31
A14: Client 03 | B14: Cluster 1 | C14: 511 | D14: SA716-3603 SL CORE | E14: SL Supported Living | F14: 2019-08-01 | G14: 2019-08-03 | H14: 2019-12-31 | I14: 2019-10-31 | J14: 90 | K14: 1 | L14: 2 | M14: 144.81 | R14: -14 | S14: -14 | T14: -14 | U14: -14 | V14: 0 | W14: 2.69 | X14: 4.85 | Y14: 152.35 | Z14: 34.02 | AA14: 1.68 | AB14: 0.68 | AC14: 0 | AD14: 1.85 | AE14: 7.9 | AF14: 46.13 | AG14: 198.48 | AH14: 13032.9 | AI14: 242.1 | AJ14: 436.5 | AK14: 0 | AL14: 13711.5 | AM14: 3061.8 | AN14: 151.2 | AO14: 61.2 | AP14: 0 | AQ14: 166.5 | AR14: 711 | AS14: 4151.7 | AT14: 17863.2 | AU14: 17863.2 | AV14: 0 | AW14: 90
A15: Client 03 (Client 12) COCA | B15: Cluster 1 | C15: 511 | D15: SA716-3603 SL CORE | E15: SL Supported Living | F15: 2019-11-01 | H15: 2019-12-31 | J15: 61 | L15: 2 | M15: 144.81 | R15: -13 | S15: -13 | T15: -13 | U15: -13 | V15: 0 | W15: 2.69 | X15: 4.85 | Y15: 152.35 | Z15: 34.02 | AA15: 1.68 | AB15: 0.68 | AC15: 0 | AD15: 3.5 | AE15: 10.44 | AF15: 50.32 | AG15: 202.67 | AH15: 8833.41 | AI15: 164.09 | AJ15: 295.85 | AK15: 0 | AL15: 9293.35 | AM15: 2075.22 | AN15: 102.48 | AO15: 41.48 | AP15: 0 | AQ15: 213.5 | AR15: 636.84 | AS15: 3069.52 | AT15: 12362.87 | AU15: 12362.87 | AV15: 0 | AW15: 61
A16: Client 04 | B16: Cluster 2 | C16: 512 | D16: SA716-3603 SL CORE | E16: SL Supported Living | F16: 2019-01-01 | H16: 2019-12-31 | I16: 2019-02-28 | J16: 59 | K16: 1 | L16: 3 | M16: 223.56 | R16: -12 | S16: -12 | T16: -12 | U16: -12 | V16: 0 | W16: 4.16 | X16: 4.85 | Y16: 232.57 | Z16: 35.81 | AA16: 1.68 | AB16: 1.04 | AC16: 0 | AD16: 1.85 | AE16: 10.44 | AF16: 50.82 | AG16: 283.39 | AH16: 13190.04 | AI16: 245.44 | AJ16: 286.15 | AK16: 0 | AL16: 13721.63 | AM16: 2112.79 | AN16: 99.12 | AO16: 61.36 | AP16: 0 | AQ16: 109.15 | AR16: 615.96 | AS16: 2998.38 | AT16: 16720.01 | AU16: 0 | AV16: 0 | AW16: 0
A17: Client 04 | B17: Cluster 2 | C17: 512 | D17: SA716-3603 SL CORE | E17: SL Supported Living | F17: 2019-03-01 | H17: 2019-12-31 | J17: 306 | L17: 3 | M17: 223.56 | N17: 0.35 | O17: 26.5 | R17: -11 | S17: -11 | T17: -11 | U17: -11 | V17: 9.28 | W17: 4.16 | X17: 4.85 | Y17: 241.85 | Z17: 35.81 | AA17: 1.68 | AB17: 1.04 | AC17: 0 | AD17: 4.58 | AE17: 7.9 | AF17: 51.01 | AG17: 292.86 | AH17: 68409.36 | AI17: 1272.96 | AJ17: 1484.1 | AK17: 2839.68 | AL17: 74006.1 | AM17: 10957.86 | AN17: 514.08 | AO17: 318.24 | AP17: 0 | AQ17: 1401.48 | AR17: 2417.4 | AS17: 15609.06 | AT17: 89615.16 | AU17: 106335.17 | AV17: =IF($O17=$AU$1,ROUND($N17*$O17,2)*$J17,0)+IF($Q17=$AU$1,ROUND($P17*$Q170,2)*$J17,0) -> 0 | AW17: 365
A18: Client 05 | B18: Cluster 2 | C18: 513 | D18: SA716-3603 SL CORE | E18: SL Supported Living | F18: 2019-01-01 | H18: 2019-12-31 | I18: 2019-11-27 | J18: 331 | K18: 1 | L18: 3 | M18: 223.56 | R18: -10 | S18: -10 | T18: -10 | U18: -10 | V18: 0 | W18: 4.16 | X18: 4.85 | Y18: 232.57 | Z18: 35.81 | AA18: 1.68 | AB18: 1.04 | AC18: 0 | AD18: 1.88 | AE18: 2.5 | AF18: 42.91 | AG18: 275.48 | AH18: 73998.36 | AI18: 1376.96 | AJ18: 1605.35 | AK18: 0 | AL18: 76980.67 | AM18: 11853.11 | AN18: 556.08 | AO18: 344.24 | AP18: 0 | AQ18: 622.28 | AR18: 827.5 | AS18: 14203.21 | AT18: 91183.88 | AU18: 91183.88 | AV18: =IF($O18=$AU$1,ROUND($N18*$O18,2)*$J18,0)+IF($Q18=$AU$1,ROUND($P18*$Q171,2)*$J18,0) -> 0 | AW18: 331
A19: Client 06 | B19: Cluster 2 | C19: 514 | D19: SA716-3603 SL CORE | E19: SL Supported Living | F19: 2019-05-18 | G19: 2019-05-15 | H19: 2019-12-31 | J19: 231 | K19: 1 | L19: 3 | M19: 223.56 | R19: -9 | S19: -9 | T19: -9 | U19: -9 | V19: 0 | W19: 4.16 | X19: 4.85 | Y19: 232.57 | Z19: 35.81 | AA19: 1.68 | AB19: 1.04 | AC19: 0 | AD19: 2.35 | AE19: 0 | AF19: 40.88 | AG19: 273.45 | AH19: 51642.36 | AI19: 960.96 | AJ19: 1120.35 | AK19: 0 | AL19: 53723.67 | AM19: 8272.11 | AN19: 388.08 | AO19: 240.24 | AP19: 0 | AQ19: 542.85 | AR19: 0 | AS19: 9443.28 | AT19: 63166.95 | AU19: 63166.95 | AV19: 0 | AW19: 231
A20: Client 07 | B20: Cluster 2 | C20: 515 | D20: SA716-3603 SL CORE | E20: SL Supported Living | F20: 2019-01-01 | H20: 2019-06-30 | J20: 181 | K20: 1 | L20: 2 | M20: 144.81 | R20: -8 | S20: -8 | T20: -8 | U20: -8 | V20: 0 | W20: 2.69 | X20: 4.85 | Y20: 152.35 | Z20: 34.02 | AA20: 1.68 | AB20: 0.68 | AC20: 0 | AD20: 2.5 | AE20: 2.5 | AF20: 41.38 | AG20: 193.73 | AH20: 26210.61 | AI20: 486.89 | AJ20: 877.85 | AK20: 0 | AL20: 27575.35 | AM20: 6157.62 | AN20: 304.08 | AO20: 123.08 | AP20: 0 | AQ20: 452.5 | AR20: 452.5 | AS20: 7489.78 | AT20: 35065.13 | AU20: 0 | AV20: 0 | AW20: 0
A21: Client 07 | B21: Cluster 2 | C21: 515 | D21: SA716-3603 SL CORE | E21: SL Supported Living | F21: 2019-07-01 | H21: 2019-12-31 | J21: 184 | L21: 2 | M21: 144.81 | R21: -7 | S21: -7 | T21: -7 | U21: -7 | V21: 0 | W21: 2.69 | X21: 4.85 | Y21: 152.35 | Z21: 34.02 | AA21: 1.68 | AB21: 0.68 | AC21: 0 | AD21: 2.5 | AE21: 10.44 | AF21: 49.32 | AG21: 201.67 | AH21: 26645.04 | AI21: 494.96 | AJ21: 892.4 | AK21: 0 | AL21: 28032.4 | AM21: 6259.68 | AN21: 309.12 | AO21: 125.12 | AP21: 0 | AQ21: 460 | AR21: 1920.96 | AS21: 9074.88 | AT21: 37107.28 | AU21: 72172.41 | AV21: 0 | AW21: 365
A22: Client 8 | B22: Cluster 3 | C22: 518 | D22: SA716-3603 SL CORE | E22: SL Supported Living | F22: 2019-01-01 | H22: 2019-12-31 | J22: 365 | K22: 1 | L22: 3 | M22: 223.56 | N22: 0.35 | O22: 26.5 | R22: -2 | S22: -2 | T22: -2 | U22: -2 | V22: 9.28 | W22: 4.16 | X22: 4.85 | Y22: 241.85 | Z22: 35.81 | AA22: 1.68 | AB22: 1.04 | AC22: 0 | AD22: 3.2 | AE22: 7.9 | AF22: 49.63 | AG22: 291.48 | AH22: 81599.4 | AI22: 1518.4 | AJ22: 1770.25 | AK22: 3387.2 | AL22: 88275.25 | AM22: 13070.65 | AN22: 613.2 | AO22: 379.6 | AP22: 0 | AQ22: 1168 | AR22: 2883.5 | AS22: 18114.95 | AT22: 106390.2 | AU22: 106390.2 | AV22: 0 | AW22: 365
A23: Client 9 | B23: Cluster 3 | C23: 519 | D23: SA716-3603 SL CORE | E23: SL Supported Living | F23: 2019-08-01 | G23: 2019-08-15 | H23: 2019-12-31 | I23: 2019-09-30 | J23: 47 | K23: 1 | L23: 5 | M23: 364.4 | R23: -1 | S23: -1 | T23: -1 | U23: -1 | V23: 0 | W23: 6.78 | X23: 4.85 | Y23: 376.03 | Z23: 40.9 | AA23: 1.68 | AB23: 1.69 | AC23: 0 | AD23: 2.25 | AE23: 0 | AF23: 46.52 | AG23: 422.55 | AH23: 17126.8 | AI23: 318.66 | AJ23: 227.95 | AK23: 0 | AL23: 17673.41 | AM23: 1922.3 | AN23: 78.96 | AO23: 79.43 | AP23: 0 | AQ23: 105.75 | AR23: 0 | AS23: 2186.44 | AT23: 19859.85 | AU23: 0 | AV23: 0 | AW23: 0
A24: Client 9 | B24: Cluster 3 | C24: 519 | D24: SA716-3603 SL CORE | E24: SL Supported Living | F24: 2019-10-01 | H24: 2019-12-31 | J24: =IF(F24>0,+IF(I24>0,I24,H24)-IF(G24>0,G24,F24)+1,0) -> 92 | L24: 3 | M24: 223.56 | R24: 0 | S24: 0 | T24: 0 | U24: 0 | V24: 0 | W24: 4.16 | X24: 4.85 | Y24: =(M24+V24+W24+X24) -> 232.57 | Z24: 35.81 | AA24: 1.68 | AB24: 1.04 | AC24: 0 | AD24: 2.25 | AE24: 0 | AF24: 40.78 | AG24: 273.35 | AH24: 20567.52 | AI24: 382.72 | AJ24: 446.2 | AK24: 0 | AL24: 21396.44 | AM24: 3294.52 | AN24: 154.56 | AO24: 95.68 | AP24: 0 | AQ24: 207 | AR24: 0 | AS24: 3751.76 | AT24: 25148.2 | AU24: 45008.05 | AV24: 0 | AW24: 139
A25: Client 10 | B25: Cluster 3 | C25: 520 | D25: SA716-3603 SL CORE | E25: SL Supported Living | F25: 2019-01-01 | H25: 2019-12-31 | J25: 365 | K25: 1 | L25: 3 | M25: 223.56 | R25: 0 | S25: 0 | T25: 0 | U25: 0 | V25: 0 | W25: 4.16 | X25: 4.85 | Y25: 232.57 | Z25: 35.81 | AA25: 1.68 | AB25: 1.04 | AC25: 0 | AD25: 2.25 | AE25: 0 | AF25: 40.78 | AG25: 273.35 | AH25: 81599.4 | AI25: 1518.4 | AJ25: 1770.25 | AK25: 0 | AL25: 84888.05 | AM25: 13070.65 | AN25: 613.2 | AO25: 379.6 | AP25: 0 | AQ25: 821.25 | AR25: 0 | AS25: 14884.7 | AT25: 99772.75 | AU25: 99772.75 | AV25: 0 | AW25: 365
A26: Client 11 | B26: Cluster 3 | C26: 521 | D26: SA716-3603 SL CORE | E26: SL Supported Living | F26: 2019-01-01 | H26: 2019-12-31 | J26: 365 | K26: 1 | L26: 3 | M26: 223.56 | R26: 0 | S26: 0 | T26: 0 | U26: 0 | V26: 0 | W26: 4.16 | X26: 4.85 | Y26: 232.57 | Z26: 35.81 | AA26: 1.68 | AB26: 1.04 | AC26: 0 | AD26: 1.85 | AE26: 0 | AF26: 40.38 | AG26: 272.95 | AH26: 81599.4 | AI26: 1518.4 | AJ26: 1770.25 | AK26: 0 | AL26: 84888.05 | AM26: 13070.65 | AN26: 613.2 | AO26: 379.6 | AP26: 0 | AQ26: 675.25 | AR26: 0 | AS26: 14738.7 | AT26: 99626.75 | AU26: 99626.75 | AV26: 0 | AW26: 365
A27: Client 12 | B27: Cluster 3 | C27: 522 | D27: SA716-3603 SL CORE | E27: SL Supported Living | F27: 2019-07-01 | H27: 2019-12-31 | I27: 2019-08-31 | J27: 62 | K27: 1 | L27: 3 | M27: 223.56 | R27: 0 | S27: 0 | T27: 0 | U27: 0 | V27: 0 | W27: 4.16 | X27: 4.85 | Y27: 232.57 | Z27: 35.81 | AA27: 1.68 | AB27: 1.04 | AC27: 0 | AD27: 4.58 | AE27: 10.44 | AF27: 53.55 | AG27: 286.12 | AH27: 13860.72 | AI27: 257.92 | AJ27: 300.7 | AK27: 0 | AL27: 14419.34 | AM27: 2220.22 | AN27: 104.16 | AO27: 64.48 | AP27: 0 | AQ27: 283.96 | AR27: 647.28 | AS27: 3320.1 | AT27: 17739.44 | AU27: 0 | AV27: 0 | AW27: 0
A28: Client 12 | B28: Cluster 3 | C28: 522 | D28: SA716-3603 SL CORE | E28: SL Supported Living | F28: 2019-09-01 | H28: 2019-12-31 | J28: 122 | L28: 4 | M28: 291.71 | R28: 0 | S28: 0 | T28: 0 | U28: 0 | V28: 0 | W28: 5.42 | X28: 4.85 | Y28: 301.98 | Z28: 37.15 | AA28: 1.68 | AB28: 1.36 | AC28: 0 | AD28: 4.25 | AE28: 10.44 | AF28: 54.88 | AG28: 356.86 | AH28: 35588.62 | AI28: 661.24 | AJ28: 591.7 | AK28: 0 | AL28: 36841.56 | AM28: 4532.3 | AN28: 204.96 | AO28: 165.92 | AP28: 0 | AQ28: 518.5 | AR28: 1273.68 | AS28: 6695.36 | AT28: 43536.92 | AU28: 61276.36 | AV28: 0 | AW28: 184
A29: Client 13 | B29: Cluster 3 | C29: 523 | D29: SA716-3603 SL CORE | E29: SL Supported Living | F29: 2019-02-01 | H29: 2019-12-31 | I29: 2019-09-30 | J29: 242 | K29: 1 | L29: 2 | M29: 144.81 | R29: 0 | S29: 0 | T29: 0 | U29: 0 | V29: 0 | W29: 2.69 | X29: 4.85 | Y29: 152.35 | Z29: 34.02 | AA29: 1.68 | AB29: 0.68 | AC29: 0 | AD29: 3.25 | AE29: 2.5 | AF29: 42.13 | AG29: 194.48 | AH29: 35044.02 | AI29: 650.98 | AJ29: 1173.7 | AK29: 0 | AL29: 36868.7 | AM29: 8232.84 | AN29: 406.56 | AO29: 164.56 | AP29: 0 | AQ29: 786.5 | AR29: 605 | AS29: 10195.46 | AT29: 47064.16 | AU29: 0 | AV29: 0 | AW29: 0
A30: Client 13 | B30: Cluster 3 | C30: 523 | D30: SA716-3603 SL CORE | E30: SL Supported Living | F30: 2019-10-01 | H30: 2019-12-31 | J30: 92 | L30: 2 | M30: 144.81 | R30: 0 | S30: 0 | T30: 0 | U30: 0 | V30: 0 | W30: 2.69 | X30: 4.85 | Y30: 152.35 | Z30: 34.02 | AA30: 1.68 | AB30: 0.68 | AC30: 0 | AD30: 1.88 | AE30: 2.5 | AF30: 40.76 | AG30: 193.11 | AH30: 13322.52 | AI30: 247.48 | AJ30: 446.2 | AK30: 0 | AL30: 14016.2 | AM30: 3129.84 | AN30: 154.56 | AO30: 62.56 | AP30: 0 | AQ30: 172.96 | AR30: 230 | AS30: 3749.92 | AT30: 17766.12 | AU30: 64830.28 | AV30: 0 | AW30: 334
A31: Client 14 | B31: Cluster 4 | C31: 533 | D31: SA716-3603 SL CORE | E31: SL Supported Living | F31: 2019-06-05 | G31: 2019-06-06 | H31: 2019-12-31 | I31: 2019-07-30 | J31: 55 | K31: 1 | L31: 3 | M31: 223.56 | R31: 0 | S31: 0 | T31: 0 | U31: 0 | V31: 0 | W31: 4.16 | X31: 4.85 | Y31: 232.57 | Z31: 35.81 | AA31: 1.68 | AB31: 1.04 | AC31: 0 | AD31: 5.76 | AE31: 13.87 | AF31: 58.16 | AG31: 290.73 | AH31: 12295.8 | AI31: 228.8 | AJ31: 266.75 | AK31: 0 | AL31: 12791.35 | AM31: 1969.55 | AN31: 92.4 | AO31: 57.2 | AP31: 0 | AQ31: 316.8 | AR31: 762.85 | AS31: 3198.8 | AT31: 15990.15 | AU31: 15990.15 | AV31: 0 | AW31: 55
A32: Client 15 | B32: Cluster 4 | C32: 535 | D32: SA716-3603 SL CORE | E32: SL Supported Living | F32: 2019-09-24 | H32: 2019-10-31 | I32: 2019-09-27 | J32: 4 | K32: 1 | L32: 7 | M32: 291.71 | R32: 0 | S32: 0 | T32: 0 | U32: 0 | V32: 0 | W32: 9.24 | X32: 4.85 | Y32: 305.8 | Z32: 50.22 | AA32: 1.68 | AB32: 2.31 | AC32: 0 | AD32: 5.02 | AE32: 2.5 | AF32: 61.73 | AG32: 367.53 | AH32: 1166.84 | AI32: 36.96 | AJ32: 19.4 | AK32: 0 | AL32: 1223.2 | AM32: 200.88 | AN32: 6.72 | AO32: 9.24 | AP32: 0 | AQ32: 20.08 | AR32: 10 | AS32: 246.92 | AT32: 1470.12 | AU32: 1470.12 | AV32: 0 | AW32: 4
A33: Client 16 | B33: Cluster 4 | C33: 536 | D33: SA716-3603 SL CORE | E33: SL Supported Living | F33: 2019-01-01 | H33: 2019-04-30 | J33: 120 | K33: 1 | L33: 3 | M33: 223.56 | R33: 0 | S33: 0 | T33: 0 | U33: 0 | V33: 0 | W33: 4.16 | X33: 4.85 | Y33: 232.57 | Z33: 35.81 | AA33: 1.68 | AB33: 1.04 | AC33: 0 | AD33: 2.45 | AE33: 0 | AF33: 40.98 | AG33: 273.55 | AH33: 26827.2 | AI33: 499.2 | AJ33: 582 | AK33: 0 | AL33: 27908.4 | AM33: 4297.2 | AN33: 201.6 | AO33: 124.8 | AP33: 0 | AQ33: 294 | AR33: 0 | AS33: 4917.6 | AT33: 32826 | AU33: 32826 | AV33: 0 | AW33: 120
J34: 0 | K34: =IF(C34<=0,"",IF(C34=C33,"",1)) ->  | R34: 0 | S34: 0 | T34: 0 | U34: 0 | V34: 0 | Y34: 0 | AF34: 0 | AG34: 0 | AH34: 0 | AI34: 0 | AJ34: 0 | AK34: 0 | AL34: 0 | AM34: 0 | AN34: 0 | AO34: 0 | AP34: 0 | AQ34: 0 | AR34: 0 | AS34: 0 | AT34: 0 | AU34: 0 | AV34: 0 | AW34: 0
J35: 0 | R35: 0 | S35: 0 | T35: 0 | U35: 0 | V35: 0 | Y35: 0 | AF35: 0 | AG35: 0 | AH35: 0 | AI35: 0 | AJ35: 0 | AK35: 0 | AL35: 0 | AM35: 0 | AN35: 0 | AO35: 0 | AP35: 0 | AQ35: 0 | AR35: 0 | AS35: 0 | AT35: 0 | AU35: 0 | AV35: 0 | AW35: 0
J36: 0 | R36: 0 | S36: 0 | T36: 0 | U36: 0 | V36: 0 | Y36: 0 | AF36: 0 | AG36: 0 | AH36: 0 | AI36: 0 | AJ36: 0 | AK36: 0 | AL36: 0 | AM36: 0 | AN36: 0 | AO36: 0 | AP36: 0 | AQ36: 0 | AR36: 0 | AS36: 0 | AT36: 0 | AU36: 0 | AV36: 0 | AW36: 0
J37: 0 | R37: 0 | S37: 0 | T37: 0 | U37: 0 | V37: 0 | Y37: 0 | AF37: 0 | AG37: 0 | AH37: 0 | AI37: 0 | AJ37: 0 | AK37: 0 | AL37: 0 | AM37: 0 | AN37: 0 | AO37: 0 | AP37: 0 | AQ37: 0 | AR37: 0 | AS37: 0 | AT37: 0 | AU37: 0 | AV37: 0 | AW37: 0
J38: 0 | R38: 0 | S38: 0 | T38: 0 | U38: 0 | V38: 0 | Y38: 0 | AF38: 0 | AG38: 0 | AH38: 0 | AI38: 0 | AJ38: 0 | AK38: 0 | AL38: 0 | AM38: 0 | AN38: 0 | AO38: 0 | AP38: 0 | AQ38: 0 | AR38: 0 | AS38: 0 | AT38: 0 | AU38: 0 | AV38: 0 | AW38: 0
J39: 0 | R39: 0 | S39: 0 | T39: 0 | U39: 0 | V39: 0 | Y39: 0 | AF39: 0 | AG39: 0 | AH39: 0 | AI39: 0 | AJ39: 0 | AK39: 0 | AL39: 0 | AM39: 0 | AN39: 0 | AO39: 0 | AP39: 0 | AQ39: 0 | AR39: 0 | AS39: 0 | AT39: 0 | AU39: 0 | AV39: 0 | AW39: 0
J40: 0 | R40: 0 | S40: 0 | T40: 0 | U40: 0 | V40: 0 | Y40: 0 | AF40: 0 | AG40: 0 | AH40: 0 | AI40: 0 | AJ40: 0 | AK40: 0 | AL40: 0 | AM40: 0 | AN40: 0 | AO40: 0 | AP40: 0 | AQ40: 0 | AR40: 0 | AS40: 0 | AT40: 0 | AU40: 0 | AV40: 0 | AW40: 0
J41: 0 | R41: 0 | S41: 0 | T41: 0 | U41: 0 | V41: 0 | Y41: 0 | AF41: 0 | AG41: 0 | AH41: 0 | AI41: 0 | AJ41: 0 | AK41: 0 | AL41: 0 | AM41: 0 | AN41: 0 | AO41: 0 | AP41: 0 | AQ41: 0 | AR41: 0 | AS41: 0 | AT41: 0 | AU41: 0 | AV41: 0 | AW41: 0
J42: 0 | R42: 0 | S42: 0 | T42: 0 | U42: 0 | V42: 0 | Y42: 0 | AF42: =SUM(Z42:AE42) -> 0 | AG42: =+Y42+AF42 -> 0 | AH42: =M42*J42 -> 0 | AI42: =W42*J42 -> 0 | AJ42: =X42*J42 -> 0 | AK42: 0 | AL42: =$J42*Y42 -> 0 | AM42: =$J42*Z42 -> 0 | AN42: =$J42*AA42 -> 0 | AO42: =$J42*AB42 -> 0 | AP42: =$J42*AC42 -> 0 | AQ42: =J42*AD42 -> 0 | AR42: =$J42*AE42 -> 0 | AS42: =$J42*AF42 -> 0 | AT42: =AL42+AS42 -> 0 | AU42: =IF(A43=A42,0,SUMIF($A$4:$A$4805,$A42,AL$4:AL$4805))+IF(A43=A42,0,SUMIF($A$4:$A$4805,$A42,AS$4:AS$4805)) -> 0 | AV42: 0 | AW42: =IF(A43=A42,0,SUMIF($A$4:$A$4805,$A42,J$4:J$4805))+IF(A43=A42,0,SUMIF($A$4:$A$4805,$A42)) -> 0
AF43: =SUM(Z43:AE43) -> 0 | AG43: =+Y43+AF43 -> 0 | AH43: =M43*J43 -> 0 | AI43: =W43*J43 -> 0 | AJ43: =X43*J43 -> 0 | AK43: =V43*J43 -> 0 | AL43: =$J43*Y43 -> 0 | AM43: =$J43*Z43 -> 0 | AN43: =$J43*AA43 -> 0 | AO43: =$J43*AB43 -> 0 | AQ43: =J43*AD43 -> 0 | AR43: =$J43*AE43 -> 0 | AS43: =$J43*AF43 -> 0 | AT43: =AL43+AS43 -> 0 | AU43: =IF(A44=A43,0,SUMIF($A$4:$A$4805,$A43,AL$4:AL$4805))+IF(A44=A43,0,SUMIF($A$4:$A$4805,$A43,AS$4:AS$4805)) -> 0 | AV43: =IF($O43=$AU$1,$N43*$O43*$J43,0)+IF($Q43=$AU$1,$P43*$Q43*$J43,0) -> 0 | AW43: =IF(C44=C43,0,SUMIF($C$4:$C$4597,$C43,J$4:J$4597))+IF(C44=C43,0,SUMIF($C$5:$C$4598,$C43)) -> 0
A44: Totals - Detail | J44: =SUBTOTAL(9,J4:J43) -> 5797 | K44: =SUBTOTAL(9,K4:K43) -> 22 | V44: =SUBTOTAL(9,V4:V43) -> 26.31 | Y44: =SUBTOTAL(9,Y4:Y43) -> 6775.76 | AF44: =SUBTOTAL(9,AF4:AF43) -> 1514.61 | AG44: 8290.37 | AH44: 1261382.95 | AI44: 23469.8 | AJ44: 28115.45 | AK44: 9055.63 | AL44: 1322023.83 | AM44: 245123.74 | AN44: 9738.96 | AO44: 5885.15 | AP44: 0 | AQ44: 10636.56 | AR44: 19212.41 | AS44: 290596.82 | AT44: 1612620.65 | AU44: 1612620.65 | AW44: =SUBTOTAL(9,AW4:AW43) -> 5797
A45: 1 | E45: SL Supported Living | J45: =SUMIF($E$4:$E$42,$E$45,J4:J42) -> 3951 | K45: =SUMIF($E$4:$E$42,$E$45,K4:K42) -> 16 | V45: =SUMIF($E$4:$E$42,$E$45,V4:V42) -> 26.31 | Y45: =SUMIF($E$4:$E$42,$E$45,Y4:Y42) -> 5099.98 | AF45: =SUMIF($E$4:$E$42,$E$45,AF4:AF42) -> 1093.48 | AG45: 6193.46 | AH45: 802810.69 | AI45: 14947.29 | AJ45: 19162.35 | AK45: 9055.63 | AL45: 845975.96 | AM45: 139770.81 | AN45: 6637.68 | AO45: 3746.31 | AP45: 0 | AQ45: 10636.56 | AR45: 17847.41 | AS45: 178638.77 | AT45: 1024614.73 | AU45: 1024614.73 | AV45: 0 | AW45: 3951
A46: 2 | E46: GH Group Home | J46: =SUMIF($E$4:$E$42,$E$46,J4:J43) -> 1095 | K46: =SUMIF($E$4:$E$42,$E$46,K4:K43) -> 3 | V46: =SUMIF($E$4:$E$42,$E$46,V4:V43) -> 0 | Y46: =SUMIF($E$4:$E$42,$E$46,Y4:Y43) -> 839.25 | AF46: =SUMIF($E$4:$E$42,$E$46,AF4:AF43) -> 237.26 | AG46: 1076.51 | AH46: 240929.2 | AI46: 4478.55 | AJ46: 5310.75 | AK46: 0 | AL46: 250718.5 | AM46: 61845.6 | AN46: 1839.6 | AO46: 1124.2 | AP46: 0 | AQ46: 0 | AR46: 452.5 | AS46: 65261.9 | AT46: 315980.4 | AU46: 315980.4 | AV46: 0 | AW46: 1095
A47: 3 | E47: GTH Group Training Home | J47: =SUMIF($E$4:$E$42,$E$47,J4:J42) -> 751 | K47: =SUMIF($E$4:$E$42,$E$47,K4:K42) -> 3 | V47: =SUMIF($E$4:$E$42,$E$47,V4:V42) -> 0 | Y47: =SUMIF($E$4:$E$42,$E$47,Y4:Y42) -> 836.53 | AF47: =SUMIF($E$4:$E$42,$E$47,AF4:AF42) -> 183.87 | AG47: 1020.4 | AH47: 217643.06 | AI47: 4043.96 | AJ47: 3642.35 | AK47: 0 | AL47: 225329.37 | AM47: 43507.33 | AN47: 1261.68 | AO47: 1014.64 | AP47: 0 | AQ47: 0 | AR47: 912.5 | AS47: 46696.15 | AT47: 272025.52 | AU47: 272025.52 | AV47: 0 | AW47: 751
A48: DSHS/DDA Schedule H Rate History (Rev. 12/2020)

Sheet Reconciliation (hidden)
A1: TCN | B1: Procedure Code | C1: REGION | D1: Provider Name | E1: Provider Number | F1: RAC Code | G1: Client Last Name | H1: Client First Name | I1: Client P1 Id | J1: Service Month | K1: Paid Units | L1: Daily Rate | M1: Paid Amt | N1: Participation | O1: Remittance | P1: Remittance Paid Date | Q1: Schedule J Detail by Client Contracted Amount | R1: Schedule J Detail by Client Contracted Days | S1: Cost Variance | T1: Days Variance | U1: Sched J Rate | V1: Sched J Days | W1: Schedule J Total | X1: Days Variance | Y1: Dollars Variance | Z1: Comments | AA1: Resource Manager Response | AB1: Resource Manager Comments | AC1: Action taken by Analyst
Q2: =SUMIF('Schedule H - Rate History'!$C$4:$C$42,I1,'Schedule H - Rate History'!$AU$4:$AU$42) -> 0 | R2: =SUMIF('Schedule H - Rate History'!$C$4:$C$42,I1,'Schedule H - Rate History'!$AW$4:$AW$42) -> 0 | S2: =(M2+N2)-Q2 -> 0 | T2: =K2-R2 -> 0 | W2: =U2*V2 -> 0 | X2: =K2-V2 -> 0 | Y2: =M2+N2-W2 -> 0 | AD2: SA716 & SA722 | AE2: Supported Living & Group Home | AF2: =SUBTOTAL(9,#REF!) ->  | AH2: =SUBTOTAL(9,#REF!) -> 
V3: =SUBTOTAL(9,V2) -> 0 | W3: =SUBTOTAL(9,W2) -> 0 | X3: =SUBTOTAL(9,X2) -> 0 | Y3: =SUBTOTAL(9,Y2) -> 0 | AD3: Provider1 Total | AF3: =SUM(AF2:AF2) ->  | AH3: =SUM(AH2:AH2) -> 
U5: Subtotal | X5: =SUBTOTAL(9,X2:X3) -> 0 | Y5: =SUBTOTAL(9,Y2:Y3) -> 0 | AD5: Less overpayments | AF5: 0 | AH5: 0
AD6: Add underpayments | AF6: 0 | AH6: 0
AD7: Adjusted Total | AF7: =SUM(AF2:AF2,AF5,AF6) ->  | AH7: =SUM(AH2:AH2,AH5,AH6) -> 
AD9: Sched J Check | AF9: =#REF! ->  | AH9: =#REF!+#REF! -> 
AD10: Difference | AF10: =AF7-AF9 ->  | AH10: =AH7-AH9 -> 

Sheet Other Codes (hidden)
A1: TCN | B1: Procedure Code | C1: REGION | D1: Provider Name | E1: Provider Number | F1: RAC Code | G1: Client Last Name | H1: Client First Name | I1: Client P1 Id | J1: Service Month | K1: Paid Units | L1: Daily Rate | M1: Paid Amt | N1: Participation | O1: Remittance | P1: Remittance Paid Date

Sheet List (hidden)
A1: Provider Name | B1: Provider ID | C1: Urban Designation | F1: Program Type | G1: Service Code & RAC | I1: RM Responses
A3: 1N - Adult Guidance & Empowerment Service | B3: 111684901 | C3: MSA | F3: SL Supported Living | G3: SA716-3603 SL CORE | I3: Underpayment to be claimed
A4: 1N - Alpha Supported Living (Spokane) | B4: 111320906 | C4: MSA | F4: GH Group Home | G4: SA716-3604 SL CP | I4: Underpayment will not be claimed, please adjust settlement
A5: 1N - Ambitions - Spokane | B5: 111901906 | C5: MSA | F5: GTH Group Training Home | G5: SA716-3701 SL RCL | I5: Overpayment to be adjusted in P1
A6: 1N - Ambitions - Wenatchee, Omak, Moses Lake | B6: 111901903 | C6: MSA/NON-MSA | G6: SA716-3905 SL State | I6: Overpayment will not to be adjusted in P1 (explain why in column AE)
A7: 1N - ARC of Spokane | B7: 111426502 | C7: MSA | G7: SA722-3603 GH CORE | I7: COCA to be issued (Copy Attached)
A8: 1N - Assisted Residential Services | B8: 111705601 | C8: MSA | G8: SA722-3701 GH RCL | I8: COCA issued previously (Copy Attached)
A9: 1N - Community Integrated Services | B9: 111425301 | C9: MSA | G9: SA722-3905 GH State | I9: COCA not submitted by provider per DDA policy timelines
A10: 1N - Community Visions | B10: 111530102 | C10: MSA | G10: SA722-3603 GTH CORE
A11: 1N - Dreamworks Residential | B11: 111913801 | C11: NON-MSA | G11: SA722-3701 GTH RCL
A12: 1N - Drive Services | B12: 111621401 | C12: MSA | G12: SA722-3905 GTH State
A13: 1N - Excel Supported Living | B13: 111322002 | C13: MSA
A14: 1N - Grace Support Services | B14: 212120601 | C14: MSA
A15: 1N - Grant County Developmental Disabilities (DCL) | B15: 200012501 | C15: NON-MSA
A16: 1N - Hope Human Services (Spokane) | B16: 207150604 | C16: MSA
A17: 1N - Hope Supported Living | B17: 213504001 | C17: MSA
A18: 1N - Kaler House | B18: 111686001 | C18: MSA
A19: 1N - L.M.K. | B19: 111988202 | C19: NON-MSA
A20: 1N - Latah Services | B20: 111762501 | C20: MSA
A21: 1N - Living In Fulfilling Environment | B21: 111777301 | C21: MSA
A22: 1N - Mission Vista | B22: 111707401 | C22: MSA
A23: 1N - Parent's Cooperative Society for the Handicapped (Merry Glen) | B23: 111328901 | C23: MSA
A24: 1N - ResCare Spokane | B24: 111968514 | C24: MSA
A25: 1S - Alternative Residential Services | B25: 111625401 | C25: MSA/NON-MSA
A26: 1S - Ambitions - Kennewick | B26: 111901901 | C26: MSA
A27: 1S - Ambitions - Yakima | B27: 111901907 | C27: MSA
A28: 1S - Community Living | B28: 111962202 | C28: MSA
A29: 1S - Deaf Access Washington | B29: 111321901 | C29: MSA
A30: 1S - Elmview | B30: 111604101 | C30: MSA/NON-MSA
A31: 1S - Habilitat | B31: 111449601 | C31: NON-MSA
A32: 1S - Kittitas Interactive Management | B32: 111688701 | C32: NON-MSA
A33: 1S - Kittitas Interactive Management (Yakima) | B33: 111688702 | C33: MSA
A34: 1S - Reach Supported Living | B34: 209862801 | C34: MSA
A35: 1S - Reach Supported Living Walla Walla | B35: 209862802 | C35: MSA
A36: 1S - Tri-Cities Residential Services | B36: 111872501 | C36: MSA
A37: 1S - Valley Residential Services | B37: 111777901 | C37: NON-MSA
A38: 2N - Aacres | B38: 111414307 | C38: MSA
A39: 2N - Access Living | B39: 111675101 | C39: MSA
A40: 2N - All Heart Agency | B40: 111961601 | C40: MSA
A41: 2N - Alpha Supported Living Services | B41: 111320902 | C41: MSA
A42: 2N - Ambitions Whatcom | B42: 111901908 | C42: MSA
A43: 2N - Camelot Society | B43: 101955202 | C43: MSA
A44: 2N - Cascade Connections | B44: 111724102 | C44: MSA
A45: 2N - Evergreen Supported Living | B45: 111690301 | C45: MSA
A46: 2N - Holly Community Services | B46: 111765001 | C46: MSA
A47: 2N - La Casa de Esperanza | B47: 111390801 | C47: MSA
A48: 2N - Puffin Island | B48: 111959501 | C48: MSA
A49: 2N - Quilceda Community Services | B49: 111321203 | C49: MSA
A50: 2N - Rehabco | B50: 111681901 | C50: MSA
A51: 2N - Rescare | B51: 111968512 | C51: MSA
A52: 2N - Sails | B52: 111805705 | C52: MSA
A53: 2N - Service Alternatives for WA | B53: 111513304 | C53: MSA
A54: 2N - Snohomish Supportive Living Services | B54: 111518901 | C54: MSA
A55: 2N - Soundview Association | B55: 111830201 | C55: MSA
A56: 2N - Steps Toward Independence | B56: 112034301 | C56: MSA
A57: 2N - Sunrise Services | B57: 203434610 | C57: MSA
A58: 2N - Village Community Services | B58: 111938301 | C58: MSA
A59: 2N - Volunteers of America | B59: 200494106 | C59: MSA
A60: 2S - Alpha Supported Living Services | B60: 111320901 | C60: KING
A61: 2S - Ambitions | B61: 111901902 | C61: KING
A62: 2S - Arc of King County | B62: 112013701 | C62: KING
A63: 2S - Banchero Friends Services | B63: 111415001 | C63: KING
A64: 2S - Bethesda Lutheran Communities | B64: 111621301 | C64: KING
A65: 2S - Camelot Society | B65: 101955201 | C65: KING
A66: 2S - Cascade Community Services | B66: 111875001 | C66: KING
A67: 2S - Citizen Access Residential Resources | B67: 111533401 | C67: KING
A68: 2S - Community Integrated Services | B68: 111425302 | C68: KING
A69: 2S - Community Living | B69: 111962201 | C69: KING
A70: 2S - Destiny House Operations | B70: 111992801 | C70: KING
A71: 2S - Friendship House | B71: 111405501 | C71: KING
A72: 2S - Greenwood Home | B72: 111913301 | C72: KING
A73: 2S - Habilitation Services | B73: 208173701 | C73: KING
A74: 2S - Helping Hands DBA Dahlia | B74: 111736003 | C74: KING
A75: 2S - Inglewood Residential and Community Services | B75: 111568401 | C75: KING
A76: 2S - Integrated Living Services | B76: 111789002 | C76: KING
A77: 2S - L'Arche Noah Sealth of Seattle | B77: 111798601 | C77: KING
A78: 2S - Life Skills Center | B78: 111499601 | C78: KING
A79: 2S - Maksu | B79: 111577901 | C79: KING
A80: 2S - Parkview Services | B80: 111456901 | C80: KING
A81: 2S - Premier Care Services | B81: 111437001 | C81: KING
A82: 2S - Provail | B82: 101144803 | C82: KING
A83: 2S - Puget Sound Regional Services | B83: 111925301 | C83: KING
A84: 2S - Res-Care Washington | B84: 111968506 | C84: KING
A85: 2S - SAILS | B85: 111805704 | C85: KING
A86: 2S - Service Alternatives for WA | B86: 111513302 | C86: KING
A87: 2S - Shamrock Living Services | B87: 111958301 | C87: KING
A88: 2S - Shared Journeys | B88: 111515201 | C88: KING
A89: 2S - Stand Together | B89: 111753401 | C89: KING
A90: 2S - Tahoma Hills | B90: 111799101 | C90: KING
A91: 2S - Total Living Concept | B91: 111571101 | C91: KING
A92: 2S - United Friends Group Home | B92: 101601101 | C92: KING
A93: 2S - Volunteers of America | B93: 200494104 | C93: KING
A94: 3N - Aacres WA | B94: 111414304 | C94: MSA
A95: 3N - Ambitions, WA | B95: 111901904 | C95: MSA
A96: 3N - Communitas Group | B96: 102702801 | C96: MSA
A97: 3N - Community Alternatives for People with Autism (CAPA) | B97: 112026801 | C97: MSA
A98: 3N - Educational Programs in Home Living | B98: 111975401 | C98: MSA
A99: 3N - Group Action for Peninsula People | B99: 111703801 | C99: MSA
A100: 3N - Hope Human Services | B100: 207150601 | C100: MSA
A101: 3N - Kitsap Residences | B101: 111781001 | C101: MSA
A102: 3N - Kitsap Tenant Support Services | B102: 111715902 | C102: MSA
A103: 3N - L'Arche Tahoma Hope Community | B103: 111610303 | C103: MSA
A104: 3N - Life Force Services | B104: 111691201 | C104: MSA
A105: 3N - NW Services for Independent Living | B105: 111812601 | C105: MSA
A106: 3N - Options Unlimited | B106: 111904801 | C106: MSA
A107: 3N - PAM Group Home | B107: 111728401 | C107: MSA
A108: 3N - Puget Sound Assisted Living | B108: 111557601 | C108: MSA
A109: 3N - Res-Care Washington | B109: 111968504 | C109: MSA
A110: 3N - Service Alternatives for WA | B110: 111513305 | C110: MSA
A111: 3N - Tahoma Associates | B111: 111335302 | C111: MSA
A112: 3N - Valley Supported Living | B112: 111938101 | C112: MSA
A113: 3S - Aacres - Clark | B113: 111414303 | C113: NON-MSA
A114: 3S - Aacres - Thurston | B114: 111414308 | C114: MSA
A115: 3S - ABC Residential Services | B115: 555777999 | C115: MSA
A116: 3S - Adam's Place | B116: 214039510 | C116: MSA
A117: 3S - Ambitions | B117: 111901905 | C117: MSA/NON-MSA
A118: 3S - Another Option | B118: 111619102 | C118: MSA
A119: 3S - Arc of Clark County | B119: 102623403 | C119: MSA
A120: 3S - Brighton Enterprises - Clark | B120: 111686601 | C120: MSA
A121: 3S - Brighton Enterprises - Thurston | B121: 111686602 | C121: MSA
A122: 3S - CCH Individual Support Services | B122: 111909801 | C122: NON-MSA
A123: 3S - Citizen Access Residential Resources | B123: 111533403 | C123: MSA
A124: 3S - Community Resources | B124: 111977701 | C124: MSA/NON-MSA
A125: 3S - Exceptional Foresters | B125: 111551801 | C125: MSA
A126: 3S - Harbor Alternative Living Association | B126: 111349601 | C126: NON-MSA
A127: 3S - Hope Human Services | B127: 207150603 | C127: MSA
A128: 3S - Kitsap Tenant Support Services | B128: 111715901 | C128: NON-MSA
A129: 3S - Kokua | B129: 111492901 | C129: MSA
A130: 3S - Life Force Services - Clark | B130: 111691204 | C130: MSA
A131: 3S - Life Force Services - Thurston | B131: 111691202 | C131: MSA
A132: 3S - Life Works | B132: 111594402 | C132: MSA
A133: 3S - Placeone | B133: 111512001 | C133: MSA
A134: 3S - Reside Residential Care of Washington | B134: 111864101 | C134: MSA
A135: 3S - ROAR | B135: 111442501 | C135: MSA
A136: 3S - SOLO | B136: 111910501 | C136: MSA
A137: 3S - Twin Harbors Group Home Association | B137: 111669901 | C137: NON-MSA
A138: 3S - Vancare | B138: 111811201 | C138: MSA
